Cogmind - Beta 16 @@@ ROGUE MODE // 2025.11.14 @ 23:33:06 Player: BlobtheGreat Result: Destroyed by D-53 Grenadier with Mini Grenade Launcher Performance ------------- Evolutions (0) 0 Regions Visited (2) 400 Robots Destroyed (25) 125 Value Destroyed (442) 442 Prototype IDs (1) 20 Alien Tech Used (0) 0 Bonus (0) 0 TOTAL SCORE: 987 Bonus ------- None Cogmind --------- Core Integrity 0/250 Matter 266/300 Energy 100/100 System Corruption 0% Temperature Cool (0) Movement Treading (320) Ox2 Location -10/Mines Parts ------- > --- POWER (1) -------- (None) > --- PROPULSION (2) --- Light Treads Light Treads > --- UTILITY (2) ------ Huge Storage Unit > --- WEAPON (2) ------- Light Assault Rifle Light Assault Rifle > --- INVENTORY (25) --- Subdweller Power Source Subdweller Power Source Aluminum Leg Aluminum Leg Compact Wheel Subdweller Monowheel Medium Storage Unit Experimental Sensor Array Seismic Detector Improved Targeting Computer Improved Targeting Computer Subdweller Laser Particle Cannon Particle Cannon Particle Cannon Particle Cannon Subdweller Machine Gun Grenade Launcher Rocket Launcher Rocket Launcher Rocket Launcher Rocket Launcher Peak State ------------ > --- POWER ------------ Ion Engine > --- PROPULSION ------- Light Treads Compact Wheel > --- UTILITY ---------- Huge Storage Unit Experimental Sensor Array > --- WEAPON ----------- Light Assault Rifle Light Assault Rifle > --- INVENTORY -------- Subdweller Power Source Subdweller Power Source Light Treads Light Treads Aluminum Leg Aluminum Leg Compact Wheel Subdweller Monowheel Medium Storage Unit Seismic Detector Seismic Detector Improved Targeting Computer Improved Targeting Computer Subdweller Laser Particle Cannon Particle Cannon Particle Cannon Particle Cannon Light Assault Rifle Subdweller Machine Gun Grenade Launcher Rocket Launcher Rocket Launcher Rocket Launcher Rocket Launcher [Rating: 19] Favorites ----------- Power Ion Engine Engine Ion Engine Propulsion Light Treads Treads Light Treads Wheel Compact Wheel Utility Seismic Detector Device Seismic Detector Storage Huge Storage Unit Weapon Light Assault Rifle Ballistic Gun Light Assault Rifle Launcher Rocket Launcher Build | -11 -10 -10 ------- Run | Yrd Mat Min Slots Evolved . | . . . Power . | . . . Propulsion . | . . . Utility . | . . . Weapon . | . . . Parts Attached 17 | 7 5 5 Power 2 | 1 1 . Engine 2 | 1 1 . Core . | . . . Reactor . | . . . Propulsion 5 | 2 1 2 Treads 4 | 2 . 2 Leg . | . . . Wheel 1 | . 1 . Hover . | . . . Flight . | . . . Utility 5 | 2 2 1 Device 2 | 1 . 1 Storage 3 | 1 2 . Processor . | . . . Hackware . | . . . Protection . | . . . Artifact . | . . . Weapon 5 | 2 1 2 Energy Gun . | . . . Energy Cannon . | . . . Ballistic Gun 3 | 2 . 1 Ballistic Cannon . | . . . Launcher 2 | . 1 1 Special Weapon . | . . . Impact Weapon . | . . . Slashing Weapon . | . . . Piercing Weapon . | . . . Special Melee Weapon . | . . . Unidentified Prototypes 1 | . . 1 Parts Lost 7 | . 2 5 Power 2 | . 1 1 Propulsion 3 | . 1 2 Utility 1 | . . 1 Weapon 1 | . . 1 Highest Loss Streak 3 | . 1 3 To Critical Strikes . | . . . Average Backups 14 | 4 12 24 Power 1 | . . 2 Propulsion 5 | 3 5 5 Utility 2 | . 1 4 Weapon 5 | . 4 12 Tool/Special . | . . . Unused Backups 20 | . . 20 Power 2 | . . 2 Propulsion 4 | . . 4 Utility 3 | . . 3 Weapon 11 | . . 11 Tool/Special . | . . . Average Slot Usage (%) 98 | . 99 96 Engine 14 | . 14 14 Treads 19 | . 20 14 Wheel 8 | . 6 13 Device 13 | . 14 11 Storage 14 | . 14 14 Ballistic Gun 27 | . 27 27 Peak Build Rating 19 | 7 11 19 Average Rating 8 | 5 8 10 On Entrance 6 | . 7 11 Avg Prop Armor Cover (%) 14 | . 14 14 Naked Turns . | . . . Heaviest Build 90 | 11 88 90 Greatest Support 40 | 40 40 16 Greatest Overweight (x) 5 | . 5 5 Average Overweight (x) 3 | . 2 5 Largest Inventory Capacity 25 | 8 25 25 Average Capacity 18 | 7 17 25 Most Carried 25 | 7 25 25 Average Carried 14 | 5 12 24 Final Capacity 25 | 8 25 25 Final Carried 25 | 7 25 22 Class Distribution -------------------- 100% | Mutant Dominant Class ---------------- Mutant | -10/Materials Mutant | -10/Mines Resources | -11 -10 -10 ----------- Run | Yrd Mat Min Matter Collected 598 | 302 247 49 Remotely . | . . . Salvage Created 720 | 79 622 19 Parts 53 | 10 43 . Haulers Intercepted 2 | . 2 . Recyclers Shooed 3 | 1 2 . Parts Field Recycled . | . . . Retrieved Matter . | . . . Parts Self-Destructed . | . . . Prevented . | . . . Parts Restored . | . . . Kills | -11 -10 -10 ------- Run | Yrd Mat Min Combat Hostiles Destroyed 18 | . 17 1 Guns 16 | . 15 1 AOE 2 | . 2 . Classes Destroyed 8 | 1 6 1 Worker 1 | . 1 . Tunneler 4 | 4 . . Hauler 2 | . 2 . Recycler 1 | . 1 . Swarmer 9 | . 9 . Grunt 5 | . 5 . Subdweller 3 | . 3 . Assembled 1 | . . 1 Best Kill Streak 4 | 4 4 1 Combat Bots Only 4 | . 4 1 Max Kills in Single Turn 2 | 2 2 1 Gunslinging 1 | . 1 . Exploded 2 | . 2 . Melee . | . . . Uniques/NPCs Destroyed . | . . . Combat | -11 -10 -10 -------- Run | Yrd Mat Min Hostile Shots Fired 107 | . 95 12 Missed 33 | . 31 2 Hits 74 | . 64 10 Melee 3 | . . 3 Projectile 71 | . 64 7 AOE 7 | . . 7 Critical Strikes 1 | . 1 . Damage Taken 1066 | . 758 308 Core 251 | . 94 157 Absorbed by Shields . | . . . Regen/Repaired (Parts) 125 | . 125 . Core Remaining (%) 100 | 100 . . Volleys Fired 111 | 16 84 11 Largest 2 | 2 2 2 Hottest 40 | 40 40 40 Shots Fired 216 | 32 166 18 Gun 214 | 32 164 18 Cannon . | . . . Launcher 2 | . 2 . Special . | . . . Kinetic 214 | 32 164 18 Thermal . | . . . Explosive 2 | . 2 . Electromagnetic . | . . . Robot Hit Streak 12 | 8 12 2 Robot Miss Streak 6 | 3 6 4 Penetration Max . | . . . Secondary Targets 3 | . 3 . Max Gunslinging Chain 1 | . 1 . Shots Hit Robots 114 | 20 86 8 Core Hits 54 | 7 41 6 Critical Kills . | . . . Critical Parts Destroyed . | . . . Critical Strikes . | . . . Melee Attacks . | . . . Impact . | . . . Slashing . | . . . Piercing . | . . . Sneak Attacks . | . . . Combat Hostiles . | . . . Follow-up Attacks . | . . . Damage Inflicted 1116 | 186 867 63 Guns 975 | 186 726 63 Cannons . | . . . Explosions 136 | . 136 . Melee . | . . . Ramming 5 | . 5 . Kinetic 975 | 186 726 63 Thermal . | . . . Explosive 136 | . 136 . Electromagnetic . | . . . Impact . | . . . Slashing . | . . . Piercing . | . . . Highest Corruption . | . . . Average Corruption . | . . . Corruption Purged . | . . . Corruption Blocked . | . . . Overload Shots . | . . . Overflow Damage 6 | . 6 . Projectiles . | . . . Explosions 6 | . 6 . Melee . | . . . Knockbacks . | . . . Impact . | . . . Kinetic . | . . . Secondary . | . . . Self-Inflicted Damage . | . . . Shots . | . . . Rammed 2 | . 2 . Targets Rammed 2 | . 2 . Kicked . | . . . Crushed . | . . . Highest Temperature 34 | . 34 . Average Temperature 10 | . 10 . Received Heat Transfer 210 | . 210 . Siege Activations . | . . . Martial Activations . | . . . Shielding Activations . | . . . Robots Disrupted . | . . . Combat Hostiles . | . . . Robots Corrupted . | . . . Combat Hostiles . | . . . Parts Fried . | . . . Impact Corruptions . | . . . Robots Melted . | . . . Combat Hostiles . | . . . Parts Melted 2 | . 2 . Heat Transferred . | . . . Parts Sabotaged . | . . . Parts Stolen . | . . . Parts Stripped . | . . . Power Chain Reactions . | . . . Alert | -11 -10 -10 ------- Run | Yrd Mat Min Maximum Alert Level . | . . . Low Security (%) 100 | 100 100 100 Level 1 . | . . . Level 2 . | . . . Level 3 . | . . . Level 4 . | . . . Level 5 . | . . . High Security . | . . . Max Security . | . . . Peak Influence 96 | 15 96 35 Initial 35 | . . 35 Average 15 | 1 21 3 Influence Increases 466 | 20 446 . Destroy 0b10 Robot/C 280 | . 280 . Destroy 0b10 Robot/NC 40 | 20 20 . Destroy Leader 64 | . 64 . Successful Hack 12 | . 12 . Disable Machine 15 | . 15 . Destroy Structure 10 | . 10 . Lose Combat Pursuer 45 | . 45 . Influence Decreases 466 | 20 354 92 Entered New Map 57 | . . 57 Time Decay 409 | 20 354 35 Squads Dispatched 2 | . 2 . Investigation . | . . . Extermination . | . . . Reinforcement 2 | . 2 . Assault . | . . . Garrison . | . . . Intercept . | . . . Searches Triggered . | . . . Construction Impeded . | . . . Haulers Reinforced . | . . . Active Scanning Responses . | . . . Cargo Convoy Interrupts . | . . . Stealth | -11 -10 -10 --------- Run | Yrd Mat Min Distress Signals 3 | . 3 . Communications Jammed . | . . . Distress Signals . | . . . Times Spotted 36 | . 31 5 Peak Tracking Total 6 | . 6 5 Tactical Retreats 3 | . 2 1 Traps | -11 -10 -10 ------- Run | Yrd Mat Min Traps Triggered . | . . . Indirectly . | . . . Trap Hack Attempts . | . . . Triggered . | . . . Disarmed . | . . . Reprogrammed . | . . . Reused . | . . . Traps Extracted . | . . . Installed . | . . . Triggered . | . . . Machines | -11 -10 -10 ---------- Run | Yrd Mat Min Machines Disabled 1 | . 1 . Max in Single Turn 1 | . 1 . Machines Repaired . | . . . Machines Dismantled . | . . . Machines Sabotaged . | . . . Overloaded Fab Kills . | . . . Hacking | -11 -10 -10 --------- Run | Yrd Mat Min Machines Accessed 6 | . 6 . Terminals 5 | . 5 . Fabricators . | . . . Repair Stations 1 | . 1 . Recycling Units . | . . . Scanalyzers . | . . . Garrison Access . | . . . Total Hacks 17 | . 17 . Successful 12 | . 12 . Failed 5 | . 5 . Catastrophic . | . . . Database Lockouts . | . . . Manual 14 | . 14 . Terminals 15 | . 15 . Fabricators . | . . . Repair Stations 2 | . 2 . Recycling Units . | . . . Scanalyzers . | . . . Garrison Access . | . . . Terminal Hacks 4 | . 4 . Robot Analysis 2 | . 2 . Alert Level 2 | . 2 . Fabricator Hacks . | . . . Repair Station Hacks 2 | . 2 . Scan Component 1 | . 1 . Repair 1 | . 1 . Recycling Unit Hacks . | . . . Scanalyzer . | . . . Garrison Access Hacks . | . . . Unauthorized Hacks 6 | . 6 . Terminals 6 | . 6 . Botnet 1 | . 1 . Skim 5 | . 5 . Fabricators . | . . . Repair Stations . | . . . Recycling Units . | . . . Scanalyzers . | . . . Garrison Access . | . . . Data Cores Recovered . | . . . Used . | . . . Hacking Detections 5 | . 5 . Full Trace Events . | . . . Feedback Events . | . . . Feedback Blocked . | . . . Robot Schematics Acquired . | . . . Robots Built . | . . . Authchips . | . . . Time . | . . . Total Robot Build Rating . | . . . Part Schematics Acquired . | . . . Parts Built . | . . . Authchips . | . . . Time . | . . . Total Part Build Rating . | . . . Part Studies Acquired . | . . . Parts Repaired 1 | . 1 . Time 26 | . 26 . Parts Recycled . | . . . Recycled Matter . | . . . Retrieved Matter . | . . . Retrieved Components . | . . . Parts Scanalyzed . | . . . Part Schematics Acquired . | . . . Parts Damaged . | . . . Bothacking | -11 -10 -10 ------------ Run | Yrd Mat Min Used RIF Installer . | . . . Robots Hacked . | . . . Non-combat . | . . . Combat . | . . . Robot Hacks Applied . | . . . Relay Couplers Released . | . . . Fabnet Peak Effective % . | . . . Robots Rewired . | . . . Allies Hacked . | . . . Hacks Repelled . | . . . Allies | -11 -10 -10 -------- Run | Yrd Mat Min Total Allies . | . . . Largest Group . | . . . Highest-Rated Group . | . . . Highest-Rated Ally . | . . . Total Orders . | . . . Ally Attacks . | . . . Total Damage . | . . . Kills . | . . . Allies Corrupted . | . . . Allies Melted . | . . . Intel | -11 -10 -10 ------- Run | Yrd Mat Min Active Infowar (turns) 1976 | 44 1510 422 Sensors 1 | . . 1 Seismic 1975 | 44 1510 421 Robot Analysis Total 2 | . 2 . Derelict Logs Recovered . | . . . Drone Launches . | . . . Drone Recoveries . | . . . Exploration | -11 -10 -10 ------------- Run | Yrd Mat Min Turns Passed 2162 | 155 1510 497 Spaces Moved 1058 | 64 730 264 Core 5 | 5 . . Treads 415 | 59 356 . Legs . | . . . Wheels 638 | . 374 264 Hover . | . . . Flight . | . . . Fastest Speed 50 | 50 160 175 Average Speed 168 | 151 167 175 Slowest Speed 175 | 160 175 175 Overloaded Moves . | . . . Propulsion Burnouts . | . . . Robots Hopped . | . . . Potential Cave-ins . | . . . Cave-ins Triggered . | . . . Exploration Rate (%) 54 | 4 95 63 Regions Visited 2 Branch Regions 1 Pre-discovered Areas . | . . . Known Exits Taken . | . . . Unknown Exits Taken 2 | 1 1 . Scrap Searched 1 | . . 1 Spaces Dug . | . . . Terrain Destroyed 9 | . 9 . Melee . | . . . Projectile . | . . . AOE 9 | . 9 . Terrain Rammed . | . . . Walls Destroyed . | . . . Machines Disabled . | . . . Actions | -11 -10 -10 --------- Run | Yrd Mat Min Total 1258 | 93 880 285 Wait 33 | . 33 . Move 1056 | 63 729 264 Hop . | . . . Pick Up 29 | 7 20 2 Fast Attach 8 | 7 1 . Attach 5 | . 2 3 Detach . | . . . Swap 10 | . 7 3 Drop 4 | . 2 2 Fire 111 | 16 84 11 Melee . | . . . Ram . | . . . Kick . | . . . Crush 2 | . 2 . Escape Stasis . | . . . Rewire . | . . . Trap . | . . . Miscellaneous . | . . . Route ------- -11/Scrapyard -10/Materials (discovered 6 exits: [*Mat x3] / [*Min x2] / Sub) -10/Mines (discovered 4 exits: [*Mat x2] / [*Exi] / *Sub) History --------- Turn | Location | Event 4 | -11/Scrapyard | Discovered new exit (range 16) 156 | -11/Scrapyard | Entered Materials 309 | -10/Materials | Build established: Mutant 331 | -10/Materials | Discovered new exit (range 5) 399 | -10/Materials | Discovered new exit (range 13) 600 | -10/Materials | Repaired Lgt. Treads 755 | -10/Materials | Discovered new exit (range 8) 889 | -10/Materials | Discovered new exit (range 5) 1059 | -10/Materials | Discovered new exit (range 7) 1095 | -10/Materials | Learned Storage stockpile data 1142 | -10/Materials | Identified exit to Subcaves 1156 | -10/Materials | Derelicts attacked the area 1215 | -10/Materials | Loaded intel: 9 trap records 1219 | -10/Materials | Learned 2 Storage zone layouts 1220 | -10/Materials | Learned 2 Storage zone layouts 1225 | -10/Materials | Learned 4 Recycling zone layouts 1240 | -10/Materials | Learned Materials trap positions 1263 | -10/Materials | Learned location of 2 exits from Materials 1666 | -10/Materials | Entered Mines 1749 | -10/Mines | Deemed a non-threat by the Exiles lab entrance 1749 | -10/Mines | Discovered new exit (range 5) 1852 | -10/Mines | Received a Rocket Launcher from a helpful Derelict 1912 | -10/Mines | Found a damaged Exp. Sensor Array with a note attached 1916 | -10/Mines | Found Prototype Device 1917 | -10/Mines | Identified Exp. Sensor Array 1953 | -10/Mines | Discovered new exit (range 8) 2006 | -10/Mines | Discovered exit to Subcaves (range 7) 2053 | -10/Mines | Discovered new exit (range 8) 2068 | -10/Mines | Assembled infested the area 2084 | -10/Mines | Core integrity fell below 50% 2158 | -10/Mines | Core integrity fell below 20% 2163 | -10/Mines | Destroyed by D-53 Grenadier with Mini Grenade Launcher Last Messages --------------- 01914_ Dropped Rocket Launcher. 01916_ Acquired Prototype Device. 01917_ Identified Exp. Sensor Array. 01920_ R-06 Scavenger collects Rocket Launcher. 01953_ EXIT=FOUND 02006_ EXIT=FOUND: SUBCAVES 02026_ K-01 Serf collects debris. 02053_ EXIT=FOUND 02068_ ALERT: Infestation in the mines, dispatching Demolisher response squad. 02088_ Seismic Detector destroyed. 02088_ Lgt. Assault Rifle destroyed. 02093_ as-63487 destroyed. 02138_ Acquired 19 matter. 02149_ Lgt. Treads destroyed. 02151_ Com. Wheel destroyed. 02157_ The unstable cave ceiling collapses. 02160_ K-01 Serf collects debris. 02161_ Ion Engine destroyed. 02162_ The unstable cave ceiling collapses. Map ----- +----------------------------------------------------+ | ??????# #?????????????????????? | | ??????# ###???????????????????? | | ??????# ##??????????????????? | | ??????## #?????????????????? | | ???????# ## #?????????????? | | ???????# ##?? #????????????? | | ???????# #???? ??????????? | | ???????# ##????? ??????????? | | ???????# ##??????? #??????????? | | ???????# ###?????????? ???????????? | | ???????# #????????????? ???????????? | | ???????# ####???????????????????????? | | ??????## ##??????????????????????? | | ??????# ####???????????????????? | | ??????## ##??????????????????? | | ???????# #??????????????????? | | ???????## #??????????????????? | | ????????## ##??????????????????? | | ????###### ##???????????????????? | | ???## ##????????????????????? | | ???# r ###????????????????????? | | ???# # ##???????????????????? | | ???# < ##????? ?????????? | | ???# k ## ????????? | | ???# a ????????? | | ??# @ d ????????? | | ??# #### #?????????? | | ??# # ##??????????????????? | | ??# ### #???????????????????? | | ??######?## ##???????????????????? | | ??????????#######????????????????????? | | ?????????????????????????????????????? | | ?????????????????????????????????????? | | ?????????????????????????????????????? | | ?????????????????????????????????????? | | | | | | | | | | | | | | | | | | | | | | | | | | | | | | | +----------------------------------------------------+ Best States ------------- Heat Dissipation 25 Energy Generation 10 Energy Capacity 250 Matter Stores 300 Matter Capacity 300 Sight Range 16 Terrain Scan Density 10 Evasion (%) 40 Recoil Reduction 2 Item Schematics ----------------- None Robot Schematics ------------------ None Fabricated ------------ Nothing Repaired ---------- Lgt. Treads | 10% | -10/Materials Studied --------- None Alien Tech Used ----------------- None Achievements -------------- None Challenges ------------ None Game ------ Seed BlanketCommImmobilizer Manual? 0 Play Time 00:11:54 Cumulative 182.0 hours Start 2025.11.14 @ 23:22:40 End 2025.11.14 @ 23:33:06 Sessions 1 Manual Loads 0 Difficulty Rogue Special Mode None Game No. 173 Rogue 173 Adventurer 0 Explorer 0 Win Type - Total 6 Types 5/0/1/0/0/0/0/0/0/0 Lore% 81 Gallery% 70 Achievement% 53 Wizard Run 0 Options --------- Layout 1 ASCII 0 Keyboard 1 Movement Arrows Keybinds 0 Fullscreen 1 Font 24/Smallcaps Map View 50x40 Zoom Use 0% Tactical HUD 1 Map Filters NONE Filters NONE Steam 1 RUN: 47c830be-1c97-4a01-90f7-89534fd85ad4